fUSD/lending_fUSD_20241026
["ID","MTS","AMOUNT","RATE_DAILY","PERIOD"]
[340864432,1729956652515,-157.076706,0.000615,120]
[340864433,1729956652525,-157.076706,0.000615,120]
[340864434,1729956652534,-157.076706,0.000615,120]
[340864435,1729956652544,-157.076706,0.000615,120]
[340864436,1729956652553,-265.798713,0.000615,120]
[340864437,1729956652562,-265.798713,0.000615,120]
[340864438,1729956652571,-5000.0,0.000615,120]
[340864439,1729956652581,-265.798713,0.000615,120]
[340864440,1729956652590,-5000.0,0.000615,120]
[340864441,1729956652599,-265.798713,0.000615,120]
[340864442,1729956652608,-5000.0,0.000615,120]
[340864443,1729956652618,-5000.0,0.000615,120]
[340864444,1729956652627,-5000.0,0.000615,120]
[340864445,1729956652636,-5000.0,0.000615,120]
[340864446,1729956652646,-5000.0,0.000615,120]
[340864447,1729956652656,-5000.0,0.000615,120]
[340864448,1729956652665,-3872.837952,0.000615,120]
[340864449,1729956652674,-3200.131934,0.000615,120]
[340864450,1729956652684,-3200.131934,0.000615,120]
[340864451,1729956652693,-180.039292,0.000615,120]
[340864452,1729956652702,-180.039292,0.000615,120]
[340864453,1729956652712,-180.039292,0.000615,120]
[340864454,1729956652722,-180.039292,0.000615,120]
[340864455,1729956652731,-279.309106,0.000615,120]
[340864456,1729956652740,-279.309106,0.000615,120]
[340864457,1729956652749,-279.309106,0.000615,120]
[340864458,1729956652759,-279.309106,0.000615,120]
[340864459,1729956652768,-151.0,0.000615,120]
[340864460,1729956652777,-151.0,0.000615,120]
[340864461,1729956652787,-151.0,0.000615,120]
[340864462,1729956652798,-151.0,0.000615,120]
[340864463,1729956652807,-151.0,0.000615,120]
[340864464,1729956652816,-151.0,0.000615,120]
[340864465,1729956652826,-151.0,0.000615,120]
[340864466,1729956652836,-151.0,0.000615,120]
[340864467,1729956652845,-151.0,0.000615,120]
[340864468,1729956652856,-151.0,0.000615,120]
[340864469,1729956652865,-172.05989752,0.000615,120]
[340864470,1729956652875,-244.204176,0.000615,7]
[340864471,1729956652885,-151.0,0.000615,120]
[340864472,1729956652894,-153.844322,0.000615,120]
[340864473,1729956652904,-157.171219,0.000615,120]
[340864474,1729956652914,-151.0,0.000615,120]
[340864475,1729956652924,-151.0,0.000615,120]
[340864476,1729956652934,-151.0,0.000615,120]
[340864477,1729956652943,-151.0,0.000615,120]
[340864478,1729956652953,-429.304688,0.000615,120]
[340864479,1729956652963,-429.304688,0.000615,120]
[340864480,1729956652974,-429.304688,0.000615,120]
[340864481,1729956652986,-429.304688,0.000615,120]
[340864482,1729956652995,-155.619721,0.000615,120]
[340864483,1729956653004,-500.0,0.00061508,120]
[340864484,1729956653014,-150.0,0.00061543,120]
[340864485,1729956653024,-500.0,0.00061543,120]
[340864486,1729956653033,-500.0,0.00061543,120]
[340864487,1729956653043,-500.0,0.00061543,120]
[340864488,1729956653053,-529.88011521,0.00061543,120]
[340864489,1729956653062,-739.41,0.00061543,120]
[340864490,1729956653072,-1316.49,0.00061543,120]
[340864491,1729956653082,-500.0,0.00061543,3]
[340864492,1729956653091,-500.0,0.00061543,120]
[340864493,1729956653101,-500.0,0.00061543,120]
[340864494,1729956653110,-500.0,0.00061556,120]
[340864495,1729956653120,-2000.0,0.0006161,30]
[340864496,1729956653130,-200.0,0.0006161,30]
[340864497,1729956653140,-200.0,0.0006161,30]
[340864498,1729956653152,-491.07938976,0.00061643,120]
[340864499,1729956653163,-490.75325008,0.00061643,120]
[340864500,1729956653179,-525.59,0.00061643,120]
[340864501,1729956653188,-7259.83,0.00061689,120]
[340864502,1729956653198,-500.0,0.00061689,120]
[340864503,1729956653208,-2047.3656463,0.000617,120]
[340864504,1729956653218,-500.0,0.00061721,120]
[340864505,1729956653228,-500.0,0.00061742,120]
[340864506,1729956653238,-1018.97134821,0.000618,120]
[340864507,1729956653248,-500.0,0.00061814,120]
[340864508,1729956653258,-500.0,0.00061817,3]
[340864509,1729956653268,-500.0,0.00061817,120]
[340864510,1729956653278,-500.0,0.00061817,120]
[340864511,1729956653288,-485.92,0.00061833,2]
[340864512,1729956653298,-397.0,0.000619,50]
[340864513,1729956653308,-10000.0,0.000619,120]
[340864514,1729956653318,-500.0,0.000619,22]
[340864515,1729956653327,-500.0,0.00061917,120]
[340864516,1729956653338,-500.0,0.00061917,120]
[340864517,1729956653347,-1112.16,0.00061917,120]
[340864518,1729956653357,-500.0,0.00061917,120]
[340864519,1729956653367,-500.0,0.00061917,21]
[340864520,1729956653376,-500.0,0.00061917,120]
[340864521,1729956653387,-525.59,0.00061917,120]
[340864522,1729956653396,-203.0,0.0006195,30]
[340864523,1729956653409,-213.0,0.0006195,30]
[340864524,1729956653423,-210.0,0.0006195,30]
[340864525,1729956653432,-210.0,0.0006195,30]
[340864526,1729956653442,-500.0,0.00061962,120]
[340864527,1729956653451,-500.0,0.00061963,120]
[340864528,1729956653461,-790.95,0.00061963,120]
[340864529,1729956653471,-7259.83,0.00061963,120]
[340864530,1729956653480,-500.0,0.00061963,120]
[340864531,1729956653489,-500.0,0.00061985,120]
[340864532,1729956653499,-500.0,0.00061995,120]
[340864533,1729956653508,-500.0,0.00061995,120]
[340864534,1729956653517,-500.0,0.00061995,120]
[340864535,1729956653526,-10000.0,0.00062,62]
[340864536,1729956653535,-50000.0,0.00062,52]
[340864537,1729956653545,-1000000.0,0.00062,120]
[340864538,1729956653555,-180.0,0.00062,120]
[340864539,1729956653566,-777.37506891,0.00062,120]
[340864540,1729956653575,-936.0,0.00062,120]
[340864541,1729956653585,-151.0,0.00062,7]
[340864542,1729956653594,-151.0,0.00062,120]
[340864543,1729956653604,-151.0,0.00062,120]
[340864544,1729956653613,-301.71559,0.00062,120]
[340864545,1729956653623,-151.0,0.00062,120]
[340864546,1729956653631,-151.0,0.00062,120]
[340864547,1729956653641,-151.0,0.00062,120]
[340864548,1729956653654,-151.0,0.00062,120]
[340864549,1729956653663,-151.0,0.00062,120]
[340864550,1729956653674,-203.851932,0.00062,7]
[340864551,1729956653683,-2110.0,0.00062,30]
[340864552,1729956653692,-203.851932,0.00062,7]
[340864553,1729956653702,-151.0,0.00062,120]
[340864554,1729956653712,-151.0,0.00062,120]
[340864555,1729956653721,-151.0,0.00062,120]
[340864556,1729956653731,-151.0,0.00062,120]
[340864557,1729956653740,-151.0,0.00062,120]
[340864558,1729956653750,-151.0,0.00062,120]
[340864559,1729956653759,-188.089658,0.00062,120]
[340864560,1729956653769,-151.0,0.00062,120]
[340864561,1729956653777,-10097.0,0.00062,120]
[340864562,1729956653786,-248.17207,0.00062,120]
[340864563,1729956653795,-151.0,0.00062,120]
[340864564,1729956653805,-151.0,0.00062,120]
[340864565,1729956653815,-182.331728,0.00062,120]
[340864566,1729956653824,-182.331728,0.00062,120]
[340864567,1729956653834,-151.0,0.00062,120]
[340864568,1729956653844,-151.0,0.00062,120]
[340864569,1729956653853,-151.0,0.00062,120]
[340864570,1729956653862,-151.0,0.00062,120]
[340864571,1729956653872,-151.0,0.00062,120]
[340864572,1729956653880,-151.0,0.00062,120]
[340864573,1729956653890,-151.0,0.00062,120]
[340864574,1729956653898,-151.0,0.00062,120]
[340864575,1729956653910,-151.0,0.00062,120]
[340864576,1729956653919,-152.344854,0.00062,120]
[340864577,1729956653928,-151.0,0.00062,120]
[340864578,1729956653937,-151.0,0.00062,120]
[340864579,1729956653947,-225.846342,0.00062,120]
[340864580,1729956653958,-151.0,0.00062,120]
[340864581,1729956653969,-151.0,0.00062,120]
[340864582,1729956653978,-151.0,0.00062,120]
[340864583,1729956653987,-241.78717,0.00062,120]
[340864584,1729956653996,-241.78717,0.00062,120]
[340864585,1729956654006,-151.0,0.00062,120]
[340864586,1729956654015,-157.076706,0.00062,120]
[340864587,1729956654025,-157.076706,0.00062,120]
[340864588,1729956654034,-265.798713,0.00062,120]
[340864589,1729956654043,-265.798713,0.00062,120]
[340864590,1729956654053,-3200.131934,0.00062,120]
[340864591,1729956654063,-180.039292,0.00062,120]
[340864592,1729956654073,-180.039292,0.00062,120]
[340864593,1729956654083,-279.309106,0.00062,120]
[340864594,1729956654093,-279.309106,0.00062,120]
[340864595,1729956654102,-151.0,0.00062,120]
[340864596,1729956654112,-151.0,0.00062,120]
[340864597,1729956654121,-173.370099,0.00062,120]
[340864598,1729956654131,-151.0,0.00062,120]
[340864599,1729956654140,-151.0,0.00062,120]
[340864600,1729956654150,-151.0,0.00062,120]
[340864601,1729956654160,-151.0,0.00062,120]
[340864602,1729956654171,-429.304688,0.00062,120]
[340864603,1729956654182,-429.304688,0.00062,120]
[340864604,1729956654192,-230.0,0.00062025,8]
[340864605,1729956654201,-150.0,0.00062091,120]
[340864606,1729956654211,-500.0,0.00062091,120]
[340864607,1729956654222,-500.0,0.00062091,120]
[340864608,1729956654231,-500.0,0.00062091,120]
[340864609,1729956654242,-739.41,0.00062091,120]
[340864610,1729956654252,-1316.49,0.00062091,120]
[340864611,1729956654262,-162.7566,0.00062091,3]
[340864612,1729956654272,-644.21557101,0.00062091,120]
[340864613,1729956654281,-500.0,0.00062091,120]
[340864614,1729956654295,-4085.18888329,0.00062099,120]
[340864615,1729956654304,-500.0,0.00062111,120]
[340864616,1729956654315,-525.59,0.00062191,120]
[340864617,1729956654324,-200.0,0.00062226,30]
[340864618,1729956654333,-200.0,0.00062226,30]
[340864619,1729956654344,-7259.83,0.00062237,120]
[340864620,1729956654354,-500.0,0.00062237,120]
[340864621,1729956654364,-152.0,0.00062244,6]
[340864622,1729956654374,-500.0,0.0006231,120]
[340864623,1729956654384,-500.0,0.00062365,120]
[340864624,1729956654393,-500.0,0.00062384,120]
[340864625,1729956654404,-6060.0,0.00062428,120]
[340864626,1729956654414,-500.0,0.00062465,120]
[340864627,1729956654423,-500.0,0.00062465,120]
[340864628,1729956654433,-1112.16,0.00062465,120]
[340864629,1729956654443,-500.0,0.00062465,120]
[340864630,1729956654453,-500.0,0.00062465,21]
[340864631,1729956654463,-500.0,0.00062465,120]
[340864632,1729956654569,-525.59,0.00062465,120]
[340864633,1729956654579,-500.0,0.00062497,120]
[340864634,1729956654589,-159.58224056,0.00062498,40]
[340864635,1729956654599,-3503.11522582,0.00062499,21]
[340864636,1729956654608,-300.0,0.000625,120]
[340864637,1729956654618,-20000.0,0.000625,120]
[340864638,1729956654627,-33867.2488932,0.000625,120]
[340864639,1729956654636,-1589.07,0.000625,30]
[340864640,1729956654646,-1435.08929203,0.000625,30]
[340864641,1729956654656,-500.0,0.00062511,120]
[340864642,1729956654665,-790.95,0.00062511,120]
[340864643,1729956654675,-7259.83,0.00062511,120]
[340864644,1729956654684,-500.0,0.00062511,120]
[340864645,1729956654694,-516.86995301,0.00062533,120]
[340864646,1729956654703,-500.0,0.00062543,120]
[340864647,1729956654712,-500.0,0.00062543,120]
[340864648,1729956654722,-500.0,0.00062545,120]
[340864649,1729956654731,-1036.005696,0.00062585,120]
[340864650,1729956654740,-500.0,0.00062587,120]
[340864651,1729956654749,-150.0,0.00062639,120]
[340864652,1729956654760,-500.0,0.00062639,120]
[340864653,1729956654769,-500.0,0.00062639,120]
[340864654,1729956654779,-206.40780549,0.00062639,120]
[340864655,1729956654789,-739.41,0.00062639,120]
[340864656,1729956654799,-1316.49,0.00062639,120]
[340864657,1729956654809,-500.0,0.00062639,120]
[340864658,1729956654819,-500.0,0.0006264,120]
[340864659,1729956654828,-150.0,0.0006273,120]
[340864660,1729956654837,-525.59,0.00062739,120]
[340864661,1729956654847,-500.0,0.0006274,120]
[340864662,1729956654857,-500.0,0.00062742,120]
[340864663,1729956654866,-749.54860242,0.00062779,120]
[340864664,1729956654876,-7259.83,0.00062785,120]
[340864665,1729956654886,-215.34059638,0.00062785,120]
[340864666,1729956654895,-1000.0,0.00062788,120]
[340864667,1729956654906,-24846.658387,0.000628,30]
[340864668,1729956654916,-24846.658387,0.000628,30]
[340864669,1729956654925,-24846.658387,0.000628,30]
[340864670,1729956654934,-24846.658387,0.000628,30]
[340864671,1729956654944,-24846.658387,0.000628,30]
[340864672,1729956654954,-24846.658387,0.000628,30]
[340864673,1729956654963,-24846.658387,0.000628,30]
[340864674,1729956654973,-24846.658387,0.000628,30]
[340864675,1729956654982,-24846.658387,0.000628,30]
[340864676,1729956654992,-200.0,0.00062848,30]
[340864677,1729956655001,-200.0,0.00062848,30]
[340864678,1729956655011,-500.0,0.00062851,120]
[340864679,1729956655021,-500.0,0.00062876,120]
[340864680,1729956655031,-414.81360777,0.00062885,120]
[340864681,1729956655040,-1340.82485018,0.00062898,120]
[340864682,1729956655051,-150.11748113,0.00062898,90]
[340864683,1729956655061,-519.00027302,0.000629,120]
[340864684,1729956655071,-1909.56,0.000629,60]
[340864685,1729956655080,-500.0,0.00062913,120]
[340864686,1729956655090,-500.0,0.00062984,120]
[340864687,1729956655100,-500.0,0.00062993,120]
[340864688,1729956655109,-10000.0,0.00063,63]
[340864689,1729956655118,-50000.0,0.00063,53]
[340864690,1729956655128,-50000.0,0.00063,63]
[340864691,1729956655137,-1000000.0,0.00063,120]
[340864692,1729956655147,-77045.61366105,0.00063,120]
[340864693,1729956655158,-516.41874048,0.00063,60]
[340864694,1729956655167,-10000.0,0.00063,120]
[340864695,1729956655181,-3000.0,0.00063,120]
[340864696,1729956655192,-11279.0,0.00063,120]
[340864697,1729956655202,-151.0,0.00063,7]
[340864698,1729956655211,-151.0,0.00063,120]
[340864699,1729956655222,-151.0,0.00063,120]
[340864700,1729956655232,-151.0,0.00063,120]
[340864701,1729956655241,-151.0,0.00063,120]
[340864702,1729956655252,-151.0,0.00063,120]
[340864703,1729956655262,-151.0,0.00063,120]
[340864704,1729956655271,-203.851932,0.00063,7]
[340864705,1729956655281,-203.851932,0.00063,7]
[340864706,1729956655291,-238.442392,0.00063,120]
[340864707,1729956655301,-151.0,0.00063,120]
[340864708,1729956655311,-151.0,0.00063,120]
[340864709,1729956655320,-151.0,0.00063,120]
[340864710,1729956655330,-151.0,0.00063,120]
[340864711,1729956655340,-291.315208,0.00063,120]
[340864712,1729956655350,-151.0,0.00063,120]
[340864713,1729956655360,-151.0,0.00063,120]
[340864714,1729956655369,-182.331728,0.00063,120]
[340864715,1729956655379,-182.331728,0.00063,120]
[340864716,1729956655389,-151.0,0.00063,120]
[340864717,1729956655399,-151.0,0.00063,120]
[340864718,1729956655410,-151.0,0.00063,120]
[340864719,1729956655419,-151.0,0.00063,120]
[340864720,1729956655428,-151.0,0.00063,120]
[340864721,1729956655438,-151.0,0.00063,120]
[340864722,1729956655448,-151.0,0.00063,120]
[340864723,1729956655457,-151.0,0.00063,120]
[340864724,1729956655467,-151.0,0.00063,120]
[340864725,1729956655476,-151.0,0.00063,120]
[340864726,1729956655485,-151.0,0.00063,120]
[340864727,1729956655495,-168.752696,0.00063,120]
[340864728,1729956655504,-151.0,0.00063,120]
[340864729,1729956655514,-151.0,0.00063,120]
[340864730,1729956655523,-241.78717,0.00063,120]
[340864731,1729956655532,-241.78717,0.00063,120]
[340864732,1729956655542,-151.0,0.00063,120]
[340864733,1729956655551,-157.076706,0.00063,120]
[340864734,1729956655561,-157.076706,0.00063,120]
[340864735,1729956655571,-265.798713,0.00063,120]
[340864736,1729956655579,-265.798713,0.00063,120]
[340864737,1729956655589,-3200.131934,0.00063,120]
[340864738,1729956655599,-180.039292,0.00063,120]
[340864739,1729956655608,-180.039292,0.00063,120]
[340864740,1729956655618,-279.309106,0.00063,120]
[340864741,1729956655627,-279.309106,0.00063,120]
[340864742,1729956655637,-151.0,0.00063,120]
[340864743,1729956655647,-254.847742,0.00063,120]
[340864744,1729956655658,-151.0,0.00063,120]
[340864745,1729956655668,-151.0,0.00063,120]
[340864746,1729956655678,-151.0,0.00063,120]
[340864747,1729956655687,-151.0,0.00063,120]
[340864748,1729956655696,-429.304688,0.00063,120]
[340864749,1729956655705,-429.304688,0.00063,120]
[340864750,1729956655714,-666.0,0.00063013,120]
[340864751,1729956655723,-666.0,0.00063013,120]
[340864752,1729956655733,-1009.81832853,0.00063013,120]
[340864753,1729956655742,-1396.76,0.00063013,120]
[340864754,1729956655752,-500.0,0.00063013,120]
[340864755,1729956655761,-500.0,0.00063013,120]
[340864756,1729956655771,-1112.16,0.00063013,120]
[340864757,1729956655781,-500.0,0.00063013,120]
[340864758,1729956655790,-619.52966338,0.00063013,21]
[340864759,1729956655799,-500.0,0.00063013,120]
[340864760,1729956655809,-525.59,0.00063013,120]
[340864761,1729956655818,-203.96,0.00063014,120]
[340864762,1729956655828,-153.0,0.00063014,120]
[340864763,1729956655837,-153.0,0.00063014,120]
[340864764,1729956655847,-153.0,0.00063014,120]
[340864765,1729956655856,-153.0,0.00063014,120]
[340864766,1729956655866,-153.0,0.00063014,120]
[340864767,1729956655875,-153.0,0.00063014,120]
[340864768,1729956655884,-153.0,0.00063014,120]
[340864769,1729956655893,-500.0,0.00063049,120]
[340864770,1729956655903,-500.0,0.00063059,120]
[340864771,1729956655913,-790.95,0.00063059,120]
[340864772,1729956655922,-7259.83,0.00063059,120]
[340864773,1729956655932,-500.0,0.00063091,120]
[340864774,1729956655942,-500.0,0.00063091,120]
[340864775,1729956655951,-500.0,0.00063092,120]
[340864776,1729956655961,-4085.18888329,0.00063099,120]
[340864777,1729956655970,-1827.93,0.000631,60]
[340864778,1729956655980,-4757.04714654,0.000631,120]
[340864779,1729956655990,-1396.76,0.0006315,120]
[340864780,1729956656000,-150.0,0.00063187,120]
[340864781,1729956656010,-500.0,0.00063187,120]
[340864782,1729956656020,-500.0,0.00063187,120]
[340864783,1729956656030,-739.41,0.00063187,120]
[340864784,1729956656040,-1316.49,0.00063187,120]
[340864785,1729956656050,-500.0,0.00063187,120]
[340864786,1729956656061,-7968.23850756,0.000632,120]
[340864787,1729956656071,-1396.76,0.00063287,120]
[340864788,1729956656080,-525.59,0.00063287,120]
[340864789,1729956656090,-500.0,0.00063333,120]
[340864790,1729956656100,-7259.98077725,0.00063333,120]
[340864791,1729956656109,-1396.76,0.00063424,120]
[340864792,1729956656119,-500.0,0.00063448,120]
[340864793,1729956656128,-500.0,0.00063452,120]
[340864794,1729956656138,-500.0,0.00063461,120]
[340864795,1729956656147,-200.0,0.00063477,30]
[340864796,1729956656159,-321229.0,0.000635,120]
[340864797,1729956656170,-666.0,0.00063561,120]
[340864798,1729956656183,-277.86,0.00063561,120]
[340864799,1729956656193,-1396.76,0.00063561,120]
[340864800,1729956656203,-500.0,0.00063561,120]
[340864801,1729956656212,-500.0,0.00063561,120]
[340864802,1729956656222,-1112.16,0.00063561,120]
[340864803,1729956656233,-500.0,0.00063561,120]
[340864804,1729956656243,-500.0,0.00063561,120]
[340864805,1729956656253,-525.59,0.00063561,120]
[340864806,1729956656263,-711.63695564,0.00063597,120]
[340864807,1729956656273,-500.0,0.00063607,120]
[340864808,1729956656283,-790.95,0.00063607,120]
[340864809,1729956656292,-500.0,0.00063639,120]
[340864810,1729956656302,-500.0,0.00063639,120]
[340864811,1729956656312,-1396.76,0.00063698,120]
[340864812,1729956656322,-150.0,0.00063735,120]
[340864813,1729956656331,-500.0,0.00063735,120]
[340864814,1729956656340,-500.0,0.00063735,120]
[340864815,1729956656350,-739.41,0.00063735,120]
[340864816,1729956656359,-1316.49,0.00063735,120]
[340864817,1729956656368,-500.0,0.00063735,120]
[340864818,1729956656377,-714.95542894,0.00063784,120]
[340864819,1729956656387,-1154.0,0.0006383,120]
[340864820,1729956656396,-1396.76,0.00063835,120]
[340864821,1729956656408,-525.59,0.00063835,120]
[340864822,1729956656418,-500.91221321,0.00063961,120]
[340864823,1729956656428,-1396.76,0.00063972,120]
[340864824,1729956656437,-630.95010646,0.00063973,120]
[340864825,1729956656446,-502.22883302,0.0006399,120]
[340864826,1729956656455,-50000.0,0.00064,54]
[340864827,1729956656464,-50000.0,0.00064,64]
[340864828,1729956656474,-10000.0,0.00064,64]
[340864829,1729956656483,-1000.0,0.00064,120]
[340864830,1729956656492,-1000000.0,0.00064,120]
[340864831,1729956656501,-1127.0,0.00064,120]
[340864832,1729956656511,-400000.0,0.00064,120]
[340864833,1729956656520,-5000.0,0.00064,120]
[340864834,1729956656529,-1000000.0,0.00064,120]
[340864835,1729956656538,-200.0,0.00064,120]
[340864836,1729956656547,-401.03826431,0.00064,60]
[340864837,1729956656557,-1754.79188784,0.00064,61]
[340864838,1729956656566,-419.04504646,0.00064,60]
[340864839,1729956656576,-357.72366871,0.00064,60]
[340864840,1729956656585,-165.59760714,0.00064,70]
[340864841,1729956656594,-1138611.0,0.00064,120]
[340864842,1729956656603,-158.97,0.00064,120]
[340864843,1729956656613,-151.0,0.00064,7]
[340864844,1729956656621,-151.0,0.00064,7]
[340864845,1729956656631,-151.0,0.00064,7]
[340864846,1729956656640,-151.0,0.00064,7]
[340864847,1729956656649,-24022.01341472,0.00064,30]
[340864848,1729956656744,-151.0,0.00064,120]
[340864849,1729956656754,-151.0,0.00064,120]
[340864850,1729956656763,-151.0,0.00064,120]
[340864851,1729956656772,-151.0,0.00064,120]
[340864852,1729956656782,-151.0,0.00064,120]
[340864853,1729956656791,-151.0,0.00064,120]
[340864854,1729956656800,-151.0,0.00064,120]
[340864855,1729956656809,-151.0,0.00064,120]
[340864856,1729956656819,-249.77567,0.00064,120]
[340864857,1729956656828,-151.0,0.00064,120]
[340864858,1729956656837,-151.0,0.00064,120]
[340864859,1729956656847,-151.0,0.00064,120]
[340864860,1729956656856,-298.396442,0.00064,120]
[340864861,1729956656865,-151.0,0.00064,120]
[340864862,1729956656875,-151.0,0.00064,120]
[340864863,1729956656884,-151.0,0.00064,120]
[340864864,1729956656894,-151.0,0.00064,120]
[340864865,1729956656903,-203.851932,0.00064,7]
[340864866,1729956656912,-203.851932,0.00064,7]
[340864867,1729956656923,-203.851932,0.00064,7]
[340864868,1729956656932,-203.851932,0.00064,7]
[340864869,1729956656941,-203.851932,0.00064,7]
[340864870,1729956656950,-203.851932,0.00064,7]
[340864871,1729956656960,-203.851932,0.00064,7]
[340864872,1729956656970,-203.851932,0.00064,7]
[340864873,1729956656980,-151.0,0.00064,120]
[340864874,1729956656990,-151.0,0.00064,120]
[340864875,1729956656999,-151.0,0.00064,120]
[340864876,1729956657009,-151.0,0.00064,120]
[340864877,1729956657018,-151.0,0.00064,120]
[340864878,1729956657027,-188.637079,0.00064,120]
[340864879,1729956657036,-230.370914,0.00064,120]
[340864880,1729956657045,-151.0,0.00064,120]
[340864881,1729956657054,-151.0,0.00064,120]
[340864882,1729956657063,-151.0,0.00064,120]
[340864883,1729956657072,-151.0,0.00064,120]
[340864884,1729956657082,-151.0,0.00064,120]
[340864885,1729956657091,-151.0,0.00064,120]
[340864886,1729956657100,-151.0,0.00064,120]
[340864887,1729956657110,-182.567813,0.00064,120]
[340864888,1729956657120,-151.0,0.00064,120]
[340864889,1729956657129,-151.0,0.00064,120]
[340864890,1729956657139,-151.0,0.00064,120]
[340864891,1729956657149,-151.0,0.00064,120]
[340864892,1729956657164,-182.331728,0.00064,120]
[340864893,1729956657176,-182.331728,0.00064,120]
[340864894,1729956657186,-182.331728,0.00064,120]
[340864895,1729956657195,-182.331728,0.00064,120]
[340864896,1729956657205,-182.331728,0.00064,120]
[340864897,1729956657214,-182.331728,0.00064,120]
[340864898,1729956657224,-182.331728,0.00064,120]
[340864899,1729956657233,-182.331728,0.00064,120]
[340864900,1729956657242,-217.690792,0.00064,120]
[340864901,1729956657254,-151.0,0.00064,120]
[340864902,1729956657264,-151.0,0.00064,120]
[340864903,1729956657274,-171.04536,0.00064,120]
[340864904,1729956657284,-151.0,0.00064,120]
[340864905,1729956657293,-151.0,0.00064,120]
[340864906,1729956657303,-151.0,0.00064,120]
[340864907,1729956657312,-151.0,0.00064,120]
[340864908,1729956657322,-151.0,0.00064,120]
[340864909,1729956657332,-151.0,0.00064,120]
[340864910,1729956657341,-151.0,0.00064,120]
[340864911,1729956657352,-158.876761,0.00064,120]
[340864912,1729956657361,-151.0,0.00064,120]
[340864913,1729956657370,-151.0,0.00064,120]
[340864914,1729956657380,-151.0,0.00064,120]
[340864915,1729956657390,-151.0,0.00064,120]
[340864916,1729956657399,-151.0,0.00064,120]
[340864917,1729956657411,-151.0,0.00064,120]
[340864918,1729956657420,-151.0,0.00064,120]
[340864919,1729956657429,-151.0,0.00064,120]
[340864920,1729956657439,-254.225244,0.00064,120]
[340864921,1729956657448,-10000.0,0.00064,90]
[340864922,1729956657458,-12947.72621997,0.00064,90]
[340864923,1729956657467,-151.0,0.00064,120]
[340864924,1729956657476,-151.0,0.00064,120]
[340864925,1729956657485,-157.0845624,0.00064,120]
[340864926,1729956657495,-151.0,0.00064,120]
[340864927,1729956657505,-151.0,0.00064,120]
[340864928,1729956657514,-151.0,0.00064,120]
[340864929,1729956657524,-151.0,0.00064,120]
[340864930,1729956657533,-13313.60012989,0.00064,90]
[340864931,1729956657542,-5518.29783696,0.00064,90]